bitfinex/quotes_ETHUSD_20210701
["timestamp","ask_amount","ask_price","bid_price","bid_amount"]
[1625106263832,0.0059,2216.6,2215.8,5.01]
[1625106264029,0.0059,2216.6,2215.9,0.14]
[1625106264129,0.0059,2216.6,2215.9,5.15]
[1625106264231,0.0059,2216.6,2215.9,8.44]
[1625106264329,0.0059,2216.6,2215.9,3.43]
[1625106264634,0.0059,2216.6,2216.2,6.76441]
[1625106264753,0.0059,2216.6,2216.2,14.72201]
[1625106264855,0.0059,2216.6,2216.2,22.72201]
[1625106265153,0.0059,2216.6,2216.4,5.01]
[1625106265354,0.0059,2216.6,2216.5,24.33]
[1625106265755,0.0059,2216.6,2216.5,32.33]
[1625106265953,0.0059,2216.6,2216.5,32.49]
[1625106266159,0.0059,2216.6,2216.5,37.0096943]
[1625106266457,5.33290855,2218.8,2217.1,3.3804899]
[1625106266560,5.33290855,2218.8,2217.2,0.22283083]
[1625106266661,5.33290855,2218.8,2217.3,5.01]
[1625106266754,5.33290855,2218.8,2217.9,6.76068]
[1625106267016,5.33290855,2218.8,2217.7,5.86690539]
[1625106267112,5.33290855,2218.8,2217.7,13.86690539]
[1625106267214,5.33290855,2218.8,2217.8,0.14]
[1625106267312,5.33290855,2218.8,2217.9,5.01]
[1625106267513,5.33290855,2218.8,2218.0,0.14]
[1625106267916,5.33290855,2218.8,2218.4,6.75952]
[1625106268118,5.18290855,2218.8,2218.5,0.14]
[1625106268421,5.13290855,2218.8,2218.5,0.14]
[1625106268715,5.03290855,2218.8,2218.5,0.14]
[1625106268814,10.5475,2219.7,2218.5,0.14]
[1625106268968,4.61092281,2219.6,2218.6,6.75896]
[1625106269064,10.5475,2219.7,2218.6,6.75896]
[1625106269309,4.71381648,2219.6,2218.7,0.14]
[1625106269511,10.5475,2219.7,2218.7,0.14]
[1625106269612,10.0369,2220.2,2218.9,0.15703333]
[1625106269734,4.67905972,2220.1,2218.9,0.15703333]
[1625106269817,4.67905972,2220.1,2219.0,5.15]
[1625106269912,4.67905972,2220.1,2219.1,0.03707114]
[1625106270009,4.67905972,2220.1,2219.1,9.00875]
[1625106270214,4.67905972,2220.1,2219.2,0.14]
[1625106270311,6.75726,2220.6,2219.2,0.14]
[1625106270312,5.0966016,2220.5,2219.2,0.14]
[1625106270412,0.28385586,2220.7,2219.2,0.14]
[1625106270566,11.26754,2221.0,2219.3,0.0827975]
[1625106270662,4.73757501,2220.9,2219.3,0.0827975]
[1625106270761,4.73757501,2220.9,2219.4,0.14]
[1625106270863,4.73757501,2220.9,2219.2,0.18907433]
[1625106270964,4.73757501,2220.9,2219.5,0.14]
[1625106271060,4.58757501,2220.9,2219.5,6.89615]
[1625106271159,6.75565,2221.2,2219.6,0.00919948]
[1625106271160,5.37562764,2221.1,2219.6,0.00919948]
[1625106271359,5.37562764,2221.1,2219.7,0.14]
[1625106271600,5.27562764,2221.1,2219.7,0.14]
[1625106272101,5.17562764,2221.1,2219.7,0.14]
[1625106272299,5.17562764,2221.1,2219.2,0.09990895]
[1625106272300,14.05,2221.0,2219.1,25.57678157]
[1625106272403,5.53488819,2220.9,2219.2,0.14621767]
[1625106272600,5.35080072,2221.1,2219.2,0.14621767]
[1625106273302,5.35080072,2221.1,2219.2,3.52379287]
[1625106273402,5.35080072,2221.1,2219.7,6.75552]
[1625106273601,5.01,2220.9,2219.7,6.89552]
[1625106273763,5.16051696,2220.8,2219.7,6.89552]
[1625106275701,5.16051696,2220.8,2219.7,21.69552]
[1625106276056,5.16051696,2220.8,2219.7,6.69552]
[1625106276354,5.11051696,2220.8,2219.7,6.69552]
[1625106276455,4.96051696,2220.8,2219.7,6.69552]
[1625106277153,4.96051696,2220.8,2219.7,2.69261729]
[1625106277455,5.19964534,2220.8,2219.5,5.02813855]
[1625106277557,4.96051696,2220.8,2219.6,0.14]
[1625106278315,4.96051696,2220.8,2219.7,6.75552]
[1625106278516,4.96051696,2220.8,2219.8,0.14]
[1625106278616,4.92329254,2221.1,2219.8,0.14]
[1625106280419,5.76625771,2220.9,2219.8,0.14]
[1625106281571,5.01,2220.7,2218.5,15.763213]
[1625106281672,9.46258468,2220.6,2218.8,0.14]
[1625106281771,9.46258468,2220.6,2218.5,1.0]
[1625106281772,0.03103385,2220.5,2218.5,1.0]
[1625106281868,0.6310415,2220.4,2218.5,1.0]
[1625106281965,0.4620793,2219.9,2218.5,1.0]
[1625106282066,6.66059097,2219.9,2218.5,1.0]
[1625106282167,5.01,2219.8,2217.9,19.6452358]
[1625106282264,5.01,2219.8,2217.9,19.5052358]
[1625106282265,0.42606183,2219.7,2217.9,19.5052358]
[1625106282366,7.13476326,2219.7,2217.9,19.5052358]
[1625106282471,12.14476326,2219.7,2217.9,4.5052358]
[1625106282567,7.13476326,2219.7,2217.9,4.5052358]
[1625106282671,5.51608211,2219.4,2217.9,11.2644958]
[1625106282811,5.53467569,2219.4,2217.9,6.89926]
[1625106282908,0.25932713,2219.3,2217.9,6.89926]
[1625106283211,5.53467569,2219.4,2217.9,6.89926]
[1625106283311,0.23240674,2219.3,2217.9,6.89926]
[1625106283509,5.76018261,2219.4,2217.9,6.89926]
[1625106284312,5.75566813,2219.4,2217.9,6.89926]
[1625106284423,5.75566813,2219.4,2217.9,0.14]
[1625106284424,6.75975,2219.3,2217.9,0.14]
[1625106284518,11.85073728,2219.2,2217.9,0.14]
[1625106284621,11.85073728,2219.2,2217.3,0.14]
[1625106284622,1.64265459,2218.9,2217.3,0.14]
[1625106284720,1.64265459,2218.9,2216.6,13.50925]
[1625106284721,0.4144277,2218.8,2216.6,13.50925]
[1625106284816,11.69079193,2218.8,2217.0,0.14]
[1625106284915,5.01,2218.7,2217.0,0.14]
[1625106285094,7.25580732,2218.6,2217.0,0.14]
[1625106285196,7.27468016,2218.6,2217.0,0.14]
[1625106285295,6.20486332,2218.4,2217.0,0.14]
[1625106285396,0.36501734,2218.2,2217.0,0.14]
[1625106285599,5.16465388,2217.6,2217.0,0.14]
[1625106285695,12.41109,2217.7,2216.4,0.14]
[1625106285801,5.39640541,2217.6,2216.2,21.76448]
[1625106285893,5.6463,2217.7,2216.4,0.14]
[1625106285995,4.98662486,2217.6,2216.5,0.14]
[1625106286190,4.98662486,2217.6,2216.6,0.14]
[1625106286290,4.98662486,2217.6,2216.2,15.0]
[1625106286388,4.98662486,2217.6,2216.7,0.14]
[1625106286590,6.76352,2217.1,2216.7,0.14]
[1625106286792,4.89085445,2217.0,2216.7,0.14]
[1625106287191,4.89085445,2217.0,2216.1,0.14]
[1625106287371,4.89085445,2217.0,2215.3,3.29]
[1625106287372,0.06,2216.9,2215.3,3.29]
[1625106287456,0.27930599,2216.9,2215.9,0.14]
[1625106287551,0.06,2216.9,2215.5,0.14]
[1625106287652,4.89085445,2217.0,2215.5,0.14]
[1625106288058,5.39773489,2216.2,2215.5,0.14]
[1625106289059,9.02363,2216.0,2215.5,0.14]
[1625106289155,5.39773489,2216.2,2215.5,0.14]
[1625106289356,5.39773489,2216.2,2215.0,5.85488125]
[1625106289357,5.29773489,2216.2,2215.0,5.85488125]
[1625106289461,5.29773489,2216.2,2215.6,0.14]
[1625106289596,5.29773489,2216.2,2215.0,5.85488125]
[1625106289700,5.26173489,2216.2,2215.7,0.14]
[1625106289797,5.26173489,2216.2,2215.1,0.90052314]
[1625106289998,5.26173489,2216.2,2215.2,0.14]
[1625106290667,12.02826489,2216.2,2215.2,0.14]
[1625106290788,5.26173489,2216.2,2215.2,0.14]
[1625106290979,4.87301793,2216.9,2215.4,15.0]
[1625106291068,4.87301793,2216.9,2215.5,5.95988263]
[1625106291170,11.27884,2217.0,2215.6,20.01]
[1625106291267,5.25476172,2217.6,2215.7,0.06023231]
[1625106291371,5.25476172,2217.6,2215.7,5.13023231]
[1625106291470,5.25476172,2217.6,2215.8,15.0]
[1625106291570,5.25476172,2217.6,2215.9,0.13911905]
[1625106291668,5.25476172,2217.6,2215.9,0.27911905]
[1625106291850,5.25476172,2217.6,2216.0,20.01]
[1625106291947,5.25476172,2217.6,2216.1,0.08001384]
[1625106292048,5.25476172,2217.6,2216.1,0.22001384]
[1625106292248,5.25476172,2217.6,2216.1,0.22632415]
[1625106292449,4.83536953,2217.0,2216.1,0.22632415]
[1625106292548,6.76473,2217.1,2216.1,5.15631031]
[1625106292750,5.2114964,2217.0,2216.1,5.15631031]
[1625106292849,5.2114964,2217.0,2216.1,0.14631031]
[1625106293249,8.7698964,2217.0,2216.1,0.14631031]
[1625106293552,6.76601,2216.9,2216.1,0.14631031]
[1625106293652,4.92053217,2216.8,2216.1,0.14631031]
[1625106294858,6.76601,2216.9,2216.1,0.14631031]
[1625106294957,3.5584,2217.0,2216.1,0.14631031]
[1625106295156,3.5584,2217.0,2216.1,5.15631031]
[1625106295307,4.88868586,2216.9,2216.1,20.15631031]
[1625106295409,6.76521,2217.2,2216.1,15.14631031]
[1625106295509,5.26010139,2217.4,2216.3,5.01]
[1625106295608,4.90481554,2217.4,2216.3,5.01]
[1625106295714,10.6555,2217.7,2216.4,0.14]
[1625106295715,5.10753352,2217.6,2216.4,0.14]
[1625106295912,9.02018,2217.8,2216.4,0.14]
[1625106296010,4.87156226,2217.7,2216.4,0.14]
[1625106296113,6.76428,2217.6,2216.4,6.90335]
[1625106296215,5.46867051,2218.1,2216.5,0.02028677]
[1625106296372,5.02044601,2218.1,2216.5,18.29]
[1625106296460,5.02044601,2218.1,2216.6,0.165364]
[1625106296558,5.02044601,2218.1,2216.6,5.175364]
[1625106296661,5.02044601,2218.1,2216.7,15.0]
[1625106296758,5.02044601,2218.1,2216.7,30.01]
[1625106296861,5.02044601,2218.1,2216.8,5.15]
[1625106297066,5.02044601,2218.1,2216.8,0.14]
[1625106297159,5.02044601,2218.1,2217.0,5.01]
[1625106297265,5.02044601,2218.1,2216.8,8.0]
[1625106297360,5.02044601,2218.1,2217.1,0.14]
[1625106297462,11.78270601,2218.1,2217.1,0.14]
[1625106297659,11.78270601,2218.1,2217.2,5.01]
[1625106297863,10.7596,2218.2,2217.3,0.14]
[1625106297964,5.15979763,2218.3,2217.3,0.14]
[1625106298165,5.38989361,2218.5,2217.3,0.14]
[1625106298472,5.38989361,2218.5,2217.4,6.7608]
[1625106298594,4.90162227,2218.7,2217.4,21.7608]
[1625106298688,4.90162227,2218.7,2217.6,5.01]
[1625106298888,4.90162227,2218.7,2217.7,0.14]
[1625106299097,6.76088,2218.8,2217.7,0.14]
[1625106299190,5.09775951,2219.0,2217.7,0.02354721]
[1625106299287,5.09775951,2219.0,2217.7,0.04185242]
[1625106299488,5.09775951,2219.0,2217.7,5.05185242]
[1625106299590,5.09775951,2219.0,2217.8,6.75959]
[1625106299689,5.09775951,2219.0,2217.7,5.02804722]
[1625106299786,5.09775951,2219.0,2217.9,0.14]
[1625106301410,11.85763951,2219.0,2217.9,0.14]
[1625106301610,5.09775951,2219.0,2217.9,0.14]
[1625106302011,5.09775951,2219.0,2218.0,5.01]
[1625106302217,10.521,2219.2,2218.1,0.14]
[1625106302313,4.84221059,2219.1,2218.1,0.14]
[1625106302415,5.08048244,2219.1,2218.1,0.14]
[1625106302518,5.08048244,2219.1,2218.2,6.75818]
[1625106302614,5.08048244,2219.1,2218.1,0.08]
[1625106302716,5.08048244,2219.1,2218.3,0.14]
[1625106302914,5.03497377,2219.1,2218.3,0.14]
[1625106303087,4.9362802,2219.1,2218.3,0.14]
[1625106303184,4.88000372,2219.1,2218.3,0.14]
[1625106303283,10.521,2219.2,2218.3,0.14]
[1625106303589,4.7565277,2219.1,2218.4,6.75767]
[1625106303785,4.89215328,2219.5,2218.4,21.75767]
[1625106303885,4.89215328,2219.5,2218.5,0.14]
[1625106303987,10.187,2220.3,2218.5,0.14]
[1625106304088,5.86887924,2220.2,2218.5,0.14]
[1625106304686,5.86887924,2220.2,2218.6,5.01]
[1625106304785,4.9369059,2219.8,2218.6,11.76682]
[1625106304885,4.9369059,2219.8,2218.6,26.76682]
[1625106304987,4.9369059,2219.8,2218.7,0.14]
[1625106305491,4.9369059,2219.8,2218.7,5.15]
[1625106305593,4.9369059,2219.8,2218.7,20.15]
[1625106305691,4.9369059,2219.8,2218.8,5.01]
[1625106305791,5.23977549,2220.2,2218.8,15.0]
[1625106305940,11.99631549,2220.2,2218.9,0.14]
[1625106306100,11.99631549,2220.2,2219.0,5.01]
[1625106306190,5.23977549,2220.2,2219.0,5.01]
[1625106306290,5.23977549,2220.2,2219.1,0.14]
[1625106306588,5.23977549,2220.2,2219.1,5.15]
[1625106307188,5.23977549,2220.2,2219.1,20.15]
[1625106307390,5.23977549,2220.2,2219.1,28.15]
[1625106307490,5.23977549,2220.2,2219.1,20.15]
[1625106307588,5.23977549,2220.2,2219.1,28.15]
[1625106307890,5.23977549,2220.2,2219.2,0.08]
[1625106308098,5.23977549,2220.2,2219.3,0.14]
[1625106308334,5.23977549,2220.2,2219.5,5.01]
[1625106308440,10.187,2220.3,2219.6,6.75416]
[1625106308526,10.187,2220.3,2219.6,6.89416]
[1625106308627,4.7565277,2220.8,2219.6,6.89416]
[1625106309328,4.7565277,2220.8,2220.2,0.01371734]
[1625106309630,4.7565277,2220.8,2220.1,0.14]
[1625106309730,9.00568,2221.2,2220.1,0.14]
[1625106309881,10.6658,2221.5,2220.1,0.14]
[1625106309980,4.73467474,2221.4,2220.1,0.14690255]
[1625106310079,10.6658,2221.5,2220.1,15.14]
[1625106310181,4.73467474,2221.4,2220.2,5.01]
[1625106310278,4.73467474,2221.4,2220.3,20.01]
[1625106310378,4.73467474,2221.4,2220.3,23.44]
[1625106310627,4.73467474,2221.4,2220.3,31.44]
[1625106310726,4.73467474,2221.4,2220.4,5.01]
[1625106310820,4.73467474,2221.4,2220.5,20.01]
[1625106310919,4.73467474,2221.4,2221.1,4.0]
[1625106311022,10.6658,2221.5,2221.1,4.0]
[1625106311122,4.73467474,2222.0,2221.2,0.14]
[1625106312122,6.75135,2222.1,2221.2,0.14]
[1625106312227,4.73467474,2222.0,2221.2,0.14]
[1625106312323,11.25574,2222.4,2221.2,0.14]
[1625106312324,4.73467474,2222.3,2221.2,0.14]
[1625106314173,6.7503,2222.5,2221.2,0.14]
[1625106314277,6.7503,2222.5,2221.4,0.01163274]
[1625106314377,6.7503,2222.5,2221.3,6.16837099]
[1625106314481,11.25377,2222.8,2221.5,0.14]
[1625106314482,4.73467474,2222.4,2221.5,0.14]
[1625106314575,5.78197607,2222.7,2221.5,0.14]
[1625106314878,6.16783375,2222.5,2221.1,4.0]
[1625106314977,6.16783375,2222.5,2221.2,0.14]
[1625106315512,6.41357873,2222.1,2221.2,0.14]
[1625106315613,6.41357873,2222.1,2220.3,12.54642323]
[1625106315707,6.41343562,2221.9,2220.8,0.14]
[1625106315807,0.30029914,2221.8,2220.3,0.14]
[1625106315905,0.30614202,2221.7,2219.9,1.0]
[1625106316006,0.4537628,2221.6,2220.0,0.14]
[1625106316105,0.46953787,2221.6,2220.0,0.14]
[1625106316610,5.86709535,2221.5,2220.0,2.6761804]
[1625106316714,0.23035687,2221.4,2220.0,2.6761804]
[1625106317007,5.86709535,2221.5,2220.0,2.6761804]
[1625106317108,0.23212427,2221.4,2220.0,2.6761804]
[1625106317208,5.86709535,2221.5,2220.0,17.6761804]
[1625106317917,5.86709535,2221.5,2220.0,2.6761804]
[1625106318417,6.75318,2221.4,2220.0,2.6761804]
[1625106318516,5.67463069,2221.3,2220.0,2.6761804]
[1625106318615,5.67463069,2221.3,2220.2,5.01]
[1625106318719,5.67463069,2221.3,2220.1,10.0]
[1625106318918,5.67463069,2221.3,2220.2,0.14]
[1625106319872,5.33793287,2221.6,2220.2,12.6761804]
[1625106319973,4.82930718,2221.6,2220.4,5.01]
[1625106320071,6.75213,2221.9,2220.5,15.0]
[1625106320170,6.75213,2221.9,2220.5,20.15]
[1625106320171,4.73467474,2221.7,2220.5,20.15]
[1625106320352,4.73467474,2221.7,2220.5,15.15]
[1625106320458,9.20577474,2221.7,2220.5,17.6861804]
[1625106320653,9.20577474,2221.7,2220.6,5.01]
[1625106320750,9.20577474,2221.7,2220.5,17.5461804]
[1625106320850,9.20577474,2221.7,2220.7,0.14]
[1625106321550,9.20577474,2221.7,2220.7,5.15]
[1625106321814,9.20577474,2221.7,2220.8,5.01]
[1625106322012,9.20577474,2221.7,2220.9,0.14]
[1625106323319,9.20577474,2221.7,2219.7,2.52301373]
[1625106323418,5.01,2221.5,2219.8,10.0]
[1625106323516,6.97192151,2221.4,2219.7,2.52301373]
[1625106323616,7.27331017,2221.4,2219.7,2.52301373]
[1625106323921,0.30138866,2221.4,2219.7,2.52301373]
[1625106324073,0.25115384,2221.5,2219.7,17.52301373]
[1625106324173,6.63165444,2221.6,2219.7,17.52301373]
[1625106324268,6.63165444,2221.6,2219.7,2.52301373]
[1625106324370,5.01,2221.4,2219.7,2.52301373]
[1625106324474,6.75472,2220.6,2219.7,2.52301373]
[1625106324571,5.22358586,2220.5,2219.7,2.52301373]
[1625106325190,5.22358586,2220.5,2219.3,0.14]
[1625106325273,5.22358586,2220.5,2218.9,2.52301373]
[1625106325472,0.28466421,2220.4,2218.9,2.52301373]
[1625106325572,0.29374503,2220.4,2218.8,0.14]
[1625106325682,6.75702,2219.8,2218.8,0.14]
[1625106325770,5.46458785,2219.7,2218.8,0.14]
[1625106326747,6.75754,2219.6,2218.8,0.14]
[1625106326847,5.46458785,2219.7,2218.8,0.14]
[1625106328157,6.75805,2219.4,2218.8,0.14]
[1625106328254,5.50084421,2219.3,2218.8,0.14]
[1625106328353,9.52094421,2219.3,2217.9,0.01]
[1625106328452,0.36915433,2219.2,2218.2,0.14]
[1625106328583,0.36915433,2219.2,2217.9,0.01]
[1625106328584,0.36915433,2219.2,2217.9,0.15]
[1625106328685,0.36915433,2219.2,2217.9,0.01]
[1625106328884,0.04,2219.1,2217.9,0.01]
[1625106329082,0.32036633,2219.0,2217.9,0.01]
[1625106329184,6.76096,2218.6,2217.9,0.01]
[1625106329282,5.51561833,2218.5,2217.9,0.01]
[1625106330483,6.76195,2218.2,2217.9,0.01]
[1625106330688,4.90730546,2218.1,2217.9,0.01]
[1625106330850,8.45220546,2218.1,2217.9,0.01]
[1625106331029,4.95744605,2218.0,2217.9,0.01]
[1625106331431,2.68899478,2218.1,2217.9,0.01]
[1625106331636,2.3015,2218.2,2217.9,0.01]
[1625106331736,0.00889526,2219.1,2217.2,10.0]
[1625106331737,4.95935718,2218.8,2217.7,2.52301373]
[1625106331833,4.95935718,2218.8,2217.7,2.66301373]
[1625106331932,4.87859405,2219.1,2217.7,2.66301373]
[1625106332032,4.87859405,2219.1,2217.9,5.01]
[1625106332932,4.87859405,2219.1,2217.9,7.53301373]
[1625106333468,11.63800405,2219.1,2217.9,7.53301373]
[1625106333672,11.63800405,2219.1,2218.0,0.14]
[1625106333773,4.87859405,2219.1,2218.0,7.54322323]
[1625106333873,4.87859405,2219.1,2218.1,5.01]
[1625106334073,4.87859405,2219.1,2218.2,0.14]
[1625106334171,4.87859405,2219.1,2218.2,5.15]
[1625106334275,4.87859405,2219.1,2218.2,21.26222323]
[1625106334374,4.87859405,2219.1,2218.4,5.01]
[1625106334473,4.87859405,2219.1,2218.4,20.01]
[1625106334572,5.19457466,2219.6,2218.5,36.1]
[1625106334674,5.19457466,2219.6,2218.5,5.35]
[1625106334876,5.19457466,2219.6,2218.5,5.15]
[1625106334973,8.33607466,2219.6,2218.5,5.15]
[1625106335076,8.33607466,2219.6,2218.5,0.14]
[1625106335789,16.86,2217.9,2217.8,5.01]
[1625106336091,6.78228792,2219.2,2217.8,5.15]
[1625106336094,6.78228792,2219.2,2217.8,0.14]
[1625106336095,1.2379,2218.6,2217.8,0.14]
[1625106336197,1.2379,2218.6,2217.0,32.84315851]
[1625106336198,6.71674123,2218.5,2217.3,9.0133]
[1625106336297,6.71674123,2218.5,2217.4,0.14]
[1625106336405,6.71674123,2218.5,2216.8,10.8794]
[1625106336500,0.36994788,2218.4,2216.6,15.0]
[1625106336598,6.93744433,2218.5,2216.9,0.14]
[1625106336705,6.93744433,2218.5,2216.4,0.90052314]
[1625106336797,6.94816063,2218.5,2216.8,0.14]
[1625106337400,6.76371,2217.8,2216.8,0.14]
[1625106337499,5.37013728,2217.7,2216.8,0.14]
[1625106337799,6.02683916,2217.7,2215.9,11.27009]
[1625106337908,0.27866211,2217.6,2216.2,2.61542271]
[1625106338200,0.28876144,2217.6,2216.2,2.61542271]
[1625106338522,0.28876144,2217.6,2216.2,2.47542271]
[1625106338625,5.40780942,2217.1,2216.2,2.47542271]
[1625106339024,4.3813,2217.2,2216.2,20.06359464]
[1625106339126,3.0452,2217.2,2216.4,5.01]
[1625106339227,3.0452,2217.2,2216.5,15.0]
[1625106339324,5.74848415,2218.1,2216.7,5.01]
[1625106339474,5.74848415,2218.1,2216.8,5.21]
[1625106339671,5.74848415,2218.1,2216.8,5.01]
[1625106339876,5.74848415,2218.1,2216.8,7.54817193]
[1625106339972,5.74848415,2218.1,2216.8,10.02359464]
[1625106340275,5.74848415,2218.1,2216.8,18.02359464]
[1625106340474,5.74848415,2218.1,2217.0,6.76207]
[1625106340679,6.01796362,2218.5,2217.0,6.76207]
[1625106341381,6.01796362,2218.5,2216.8,5.06359464]
[1625106342079,15.03528362,2218.5,2216.8,14.07970464]
[1625106342178,6.01796362,2218.5,2216.8,14.07970464]
[1625106342380,6.01796362,2218.5,2216.8,29.07970464]
[1625106342482,6.01796362,2218.5,2217.0,5.01]
[1625106342584,6.01796362,2218.5,2217.0,20.01]
[1625106342852,6.01796362,2218.5,2217.1,2.58242452]
[1625106342998,0.30014949,2218.2,2217.1,2.58242452]
[1625106343096,11.43030481,2218.2,2217.1,2.53242452]
[1625106343192,0.21474992,2218.1,2216.1,16.29695724]
[1625106343295,6.76439,2217.5,2216.1,16.88205724]
[1625106343393,5.71918476,2217.4,2216.1,6.77025724]
[1625106343491,5.71918476,2217.4,2216.1,6.7641]
[1625106343891,5.71918476,2217.4,2216.1,9.34235785]
[1625106344893,5.71918476,2217.4,2216.3,5.01]
[1625106346231,5.71918476,2217.4,2216.3,4.01]
[1625106347133,5.71918476,2217.4,2216.1,9.34235785]
[1625106347236,5.68068894,2217.2,2216.1,2.57825785]
[1625106347533,5.68068894,2217.2,2216.2,15.0]
[1625106347632,6.76461,2217.3,2216.2,15.0]
[1625106347740,5.11255025,2217.2,2216.2,25.90052314]
[1625106347829,5.71389466,2217.8,2216.2,25.90052314]
[1625106347944,5.71389466,2217.8,2216.2,32.12688099]
[1625106348046,5.18040772,2218.1,2216.3,0.12]
[1625106348140,10.0025,2218.2,2216.3,0.14699639]
[1625106348239,10.0025,2218.2,2216.3,0.15592761]
[1625106348334,5.09332658,2218.1,2216.4,5.91052314]
[1625106348440,5.38886294,2218.1,2216.5,15.0676703]
[1625106348531,10.0025,2218.2,2216.5,20.0776703]
[1625106348629,5.25960898,2218.3,2216.5,20.0776703]
[1625106348630,10.5599,2218.4,2216.6,10.00614906]
[1625106348729,10.5599,2218.4,2216.8,5.01]
[1625106348833,5.0912619,2218.3,2216.9,5.01]
[1625106348929,5.0912619,2218.3,2216.9,26.85214894]
[1625106349029,5.0912619,2218.3,2216.9,26.77189]
[1625106349231,17.32181,2218.4,2216.9,26.77189]
[1625106349579,5.43620685,2218.3,2216.9,26.77189]
[1625106349677,17.32181,2218.4,2216.9,26.77189]
[1625106349877,17.32181,2218.4,2216.9,29.344398]
[1625106350232,5.07864736,2218.3,2216.9,29.344398]
[1625106350460,5.01476165,2218.3,2216.9,29.344398]
[1625106351661,6.76249,2218.2,2216.9,14.344398]
[1625106351839,6.4781645,2218.1,2216.6,9.01595]
[1625106351935,6.4781645,2218.1,2216.2,9.01757]
[1625106351936,0.28340289,2218.0,2216.2,9.01757]
[1625106352034,0.44340289,2218.0,2216.2,9.01757]
[1625106352234,0.28340289,2218.0,2216.2,9.01757]
[1625106352735,5.78537585,2217.4,2216.2,9.01757]
[1625106353237,5.78537585,2217.4,2216.1,2.572508]
[1625106353434,5.78537585,2217.4,2216.0,1.0]
[1625106354092,5.78537585,2217.4,2215.8,13.88949696]
[1625106354385,12.55026585,2217.4,2216.0,6.7655]
[1625106354483,12.22529773,2217.4,2216.0,6.7655]
[1625106354884,12.22529773,2217.4,2216.0,21.7655]
[1625106354984,5.46040773,2217.4,2216.0,24.38571696]
[1625106355385,5.46040773,2217.4,2216.1,2.572508]
[1625106355486,5.46040773,2217.4,2216.6,6.76386]
[1625106355888,5.75151062,2217.8,2216.4,9.01848]
[1625106356529,5.75151062,2217.8,2216.4,29.21120496]
[1625106356530,12.51539062,2217.8,2216.4,29.21120496]
[1625106356629,6.76388,2217.8,2216.6,5.01]
[1625106356729,21.0407,2217.9,2216.6,24.6729]
[1625106356827,10.6265,2217.9,2216.7,3.4812341]
[1625106357027,10.6265,2217.9,2216.7,7.4221421]
[1625106357226,5.23115478,2218.3,2216.9,5.01]
[1625106357330,10.5599,2218.4,2217.0,0.01350294]
[1625106357527,10.5599,2218.4,2217.1,3.380719]
[1625106357628,10.5599,2218.4,2217.5,10.63658]
[1625106357729,15.36024949,2218.7,2217.5,11.92438]
[1625106357827,5.09944949,2218.7,2217.5,11.92438]
[1625106358775,9.9412,2218.8,2217.5,11.92438]
[1625106358880,9.9412,2218.8,2218.1,6.76055]
[1625106358978,9.9412,2218.8,2218.1,10.10895]
[1625106359177,9.9697,2219.7,2218.1,10.10895]
[1625106359178,5.04574039,2219.1,2218.1,10.10895]
[1625106359281,5.04958034,2219.1,2218.1,10.10895]
[1625106359677,5.01,2218.9,2218.1,10.10895]
[1625106359778,5.01,2219.0,2218.1,10.10895]
[1625106359983,20.24476045,2219.5,2218.1,10.10895]
[1625106360184,26.70305,2219.5,2218.1,10.10895]
[1625106360287,19.9438,2219.5,2218.1,10.10895]
[1625106360381,5.07879279,2219.4,2218.1,12.90895]
[1625106360480,5.15628169,2219.4,2218.1,12.90895]
[1625106360682,19.9438,2219.5,2218.1,12.90895]
[1625106360868,19.9438,2219.5,2218.1,31.2882631]
[1625106360973,19.9438,2219.5,2218.2,0.08]
[1625106361066,5.17618756,2219.4,2218.2,0.08]
[1625106361265,5.17618756,2219.4,2218.2,2.75572954]
[1625106361366,5.17618756,2219.4,2218.3,15.0]
[1625106361464,5.17618756,2219.4,2218.3,17.711133]
[1625106361567,5.21368696,2219.4,2218.7,6.75781]
[1625106361669,5.21368696,2219.4,2218.7,10.71151]
[1625106361966,10.0165,2219.5,2218.7,10.71151]
[1625106362167,16.8197,2219.7,2218.7,10.71151]
[1625106362268,6.85,2219.7,2218.7,10.71151]
[1625106362369,5.07006317,2219.6,2218.7,10.71151]
[1625106363187,6.85,2219.7,2218.7,10.71151]
[1625106363389,5.096026,2219.6,2218.7,10.71151]
[1625106363786,6.85,2219.7,2218.7,10.71151]
[1625106363884,5.15126571,2219.6,2218.7,10.71151]
[1625106363984,6.85,2219.7,2218.7,10.71151]
[1625106364286,5.13203526,2219.6,2218.7,10.71151]
[1625106364637,5.08203526,2219.6,2218.7,10.71151]
[1625106364936,6.85,2219.7,2218.7,10.71151]
[1625106366062,6.85,2219.7,2218.7,14.08989]
[1625106366163,6.85,2219.7,2218.7,16.801023]
[1625106366362,6.85,2219.7,2218.8,3.3783046]
[1625106366666,6.85,2219.7,2218.9,15.0]
[1625106366766,6.85,2219.7,2219.2,6.75661]
[1625106366866,6.85,2220.2,2219.2,10.26421]
[1625106367067,6.85,2220.2,2219.3,15.0]
[1625106367169,6.85,2220.2,2219.3,2.84086634]
[1625106367895,6.85,2220.2,2219.3,5.42333166]
[1625106368105,6.85,2220.2,2219.4,15.0]
[1625106368198,6.85,2220.2,2219.7,6.75461]
[1625106368305,6.85,2220.2,2219.7,11.13541]
[1625106368406,5.6922,2220.2,2219.7,11.13541]
[1625106368503,5.6922,2220.2,2219.7,26.13541]
[1625106368597,5.6922,2220.2,2219.7,11.13541]
[1625106368793,5.6922,2220.2,2219.8,17.82086634]
[1625106368895,5.6922,2220.2,2219.8,2.82086634]
[1625106369000,4.77545713,2220.1,2219.8,2.82086634]
[1625106369197,4.77545713,2220.1,2219.6,10.44214]
[1625106369294,4.77545713,2220.1,2219.6,13.8190095]
[1625106369398,4.72545713,2220.1,2219.9,6.75354]
[1625106370248,6.11713946,2220.9,2219.6,9.00614]